fUST/lending_fUST_20240910
["ID","MTS","AMOUNT","RATE_DAILY","PERIOD"]
[337701772,1725977444250,-500.0,0.00017747,2]
[337701773,1725977444259,-500.0,0.00017747,2]
[337701774,1725977444269,-500.0,0.00017747,2]
[337701775,1725977444278,-540.08,0.00017747,2]
[337701776,1725977444288,-741.12,0.00017747,2]
[337701777,1725977444297,-151.0,0.00017747,2]
[337701778,1725977444306,-500.0,0.00017747,2]
[337701779,1725977444318,-470.10140678,0.00017747,2]
[337701780,1725977444327,-151.0,0.00017747,2]
[337701781,1725977444336,-3905.01,0.00017747,2]
[337701782,1725977444345,-500.0,0.00017747,2]
[337701783,1725977444354,-500.0,0.00017747,2]
[337701784,1725977444364,-1873.45,0.00017747,2]
[337701785,1725977444374,-151.0,0.00017747,2]
[337701786,1725977444383,-1439.24,0.00017747,2]
[337701787,1725977444392,-500.0,0.00017747,2]
[337701788,1725977444402,-500.0,0.00017747,2]
[337701789,1725977444411,-151.0,0.00017747,2]
[337701790,1725977444420,-500.0,0.00017747,2]
[337701791,1725977444430,-151.0,0.00017747,2]
[337701792,1725977444439,-500.0,0.00017747,2]
[337701793,1725977444449,-500.0,0.00017747,2]
[337701794,1725977444459,-500.0,0.00017747,2]
[337701795,1725977444468,-742.29,0.00017747,2]
[337701796,1725977444478,-500.0,0.00017747,2]
[337701797,1725977444487,-3036.85,0.00017747,2]
[337701798,1725977444496,-1390.89,0.00017747,2]
[337701799,1725977444505,-500.0,0.00017747,2]
[337701800,1725977444514,-839.17,0.00017747,2]
[337701801,1725977444523,-500.0,0.00017747,2]
[337701802,1725977444532,-500.0,0.00017747,2]
[337701803,1725977444542,-151.0,0.00017747,2]
[337701804,1725977444551,-500.0,0.00017747,2]
[337701805,1725977444561,-926.04,0.00017747,2]
[337701806,1725977444572,-500.0,0.00017747,2]
[337701807,1725977444581,-620.25,0.00017747,2]
[337701808,1725977444591,-500.0,0.00017747,2]
[337701809,1725977444600,-151.0,0.00017747,2]
[337701810,1725977444609,-500.0,0.00017747,2]
[337701811,1725977444619,-3994.78,0.00017747,2]
[337701812,1725977444629,-1780.46,0.00017747,2]
[337701813,1725977444638,-151.0,0.00017747,2]
[337701814,1725977444649,-500.0,0.00017747,2]
[337701815,1725977444658,-500.0,0.00017747,2]
[337701816,1725977444668,-500.0,0.00017747,2]
[337701817,1725977444677,-943.23,0.00017747,2]
[337701818,1725977444686,-500.0,0.00017747,2]
[337701819,1725977444695,-195.55588352,0.00017747,2]
[337701820,1725977444705,-500.0,0.00017747,2]
[337701821,1725977444715,-1374.94,0.00017747,2]
[337701822,1725977444724,-990.06,0.00017747,2]
[337701823,1725977444733,-1340.66,0.00017747,2]
[337701824,1725977444742,-543.68,0.00017747,2]
[337701825,1725977444751,-1093.91,0.00017747,2]
[337701826,1725977444760,-640.2,0.00017747,2]
[337701827,1725977444769,-190.520162,0.00017747,2]
[337701828,1725977444778,-584.58,0.00017747,2]
[337701829,1725977444787,-190.520162,0.00017747,2]
[337701830,1725977444796,-500.0,0.00017747,2]
[337701831,1725977444806,-169.819272,0.00017747,2]
[337701832,1725977444817,-500.0,0.00017747,2]
[337701833,1725977444827,-500.0,0.00017747,2]
[337701834,1725977444836,-500.0,0.00017747,2]
[337701835,1725977444859,-1618.22,0.00017747,2]
[337701836,1725977444870,-541.41,0.00017747,2]
[337701837,1725977444880,-151.0,0.00017747,2]
[337701838,1725977444890,-627.16,0.00017747,2]
[337701839,1725977444900,-500.0,0.00017747,2]
[337701840,1725977444910,-500.0,0.00017747,2]
[337701841,1725977444919,-690.77,0.00017747,2]
[337701842,1725977444930,-500.0,0.00017747,2]
[337701843,1725977444940,-500.0,0.00017747,2]
[337701844,1725977444950,-151.0,0.00017747,2]
[337701845,1725977444960,-573.32,0.00017747,2]
[337701846,1725977444970,-1521.45,0.00017747,2]
[337701847,1725977444979,-151.0,0.00017747,2]
[337701848,1725977444990,-151.0,0.00017747,2]
[337701849,1725977445000,-500.0,0.00017747,2]
[337701850,1725977445012,-228.26382656,0.00017747,2]
[337701851,1725977445022,-500.0,0.00017747,2]
[337701852,1725977445032,-500.0,0.00017747,2]
[337701853,1725977445042,-500.0,0.00017747,2]
[337701854,1725977445052,-583.86,0.00017747,2]
[337701855,1725977445064,-500.0,0.00017747,2]
[337701856,1725977445074,-500.0,0.00017747,2]
[337701857,1725977445084,-500.0,0.00017747,2]
[337701858,1725977445093,-151.0,0.00017747,2]
[337701859,1725977445104,-500.0,0.00017747,2]
[337701860,1725977445114,-500.0,0.00017747,2]
[337701861,1725977445123,-500.0,0.00017747,2]
[337701862,1725977445133,-500.0,0.00017747,2]
[337701863,1725977445143,-151.0,0.00017747,2]
[337701864,1725977445154,-1120.9,0.00017747,2]
[337701865,1725977445165,-529.85,0.00017747,2]
[337701866,1725977445175,-729.39,0.00017747,2]
[337701867,1725977445185,-613.85,0.00017747,2]
[337701868,1725977445195,-588.46,0.00017747,2]
[337701869,1725977445205,-36198.52,0.00017747,2]
[337701870,1725977445216,-151.0,0.00017747,2]
[337701871,1725977445226,-500.0,0.00017747,2]
[337701872,1725977445236,-500.0,0.00017747,2]
[337701873,1725977445246,-900.71,0.00017747,2]
[337701874,1725977445256,-500.0,0.00017747,2]
[337701875,1725977445266,-512.33086063,0.00017747,2]
[337701876,1725977445276,-1210.57,0.00017747,2]
[337701877,1725977445286,-500.0,0.00017747,2]
[337701878,1725977445296,-500.0,0.00017747,2]
[337701879,1725977445306,-500.0,0.00017747,2]
[337701880,1725977445317,-500.0,0.00017747,2]
[337701881,1725977445328,-500.0,0.00017747,2]
[337701882,1725977445338,-500.0,0.00017747,2]
[337701883,1725977445347,-311.01469897,0.00017747,2]
[337701884,1725977445357,-5476.12,0.00017747,2]
[337701885,1725977445367,-500.0,0.00017747,2]
[337701886,1725977445376,-766.81,0.00017747,2]
[337701887,1725977445386,-456.053917,0.00017748,2]
[337701888,1725977445395,-456.053917,0.00017748,2]
[337701889,1725977445407,-284.927883,0.00017748,2]
[337701890,1725977445416,-256.641651,0.00017748,2]
[337701891,1725977445426,-165.331149,0.00017748,2]
[337701892,1725977445435,-165.510735,0.00017748,2]
[337701893,1725977445445,-165.510735,0.00017748,2]
[337701894,1725977445455,-500.0,0.00017748,2]
[337701895,1725977445470,-151.0,0.00017748,2]
[337701896,1725977445480,-151.0,0.00017748,2]
[337701897,1725977445490,-151.0,0.00017748,2]
[337701898,1725977445500,-151.0,0.00017748,2]
[337701899,1725977445510,-500.0,0.00017748,2]
[337701900,1725977445521,-531.37991663,0.00017748,2]
[337701901,1725977445531,-500.0,0.00017748,2]
[337701902,1725977445541,-659.14,0.00017748,2]
[337701903,1725977445550,-1810.43,0.00017748,2]
[337701904,1725977445560,-500.0,0.00017748,2]
[337701905,1725977445578,-151.0,0.00017748,2]
[337701906,1725977445588,-1250.47,0.00017748,2]
[337701907,1725977445598,-151.0,0.00017748,2]
[337701908,1725977445607,-1834.6,0.00017748,2]
[337701909,1725977445617,-3739.85,0.00017748,2]
[337701910,1725977445626,-560.49712094,0.00017748,2]
[337701911,1725977445636,-190.520162,0.00017748,2]
[337701912,1725977445645,-190.520162,0.00017748,2]
[337701913,1725977445655,-746.08,0.00017748,2]
[337701914,1725977445665,-879.8,0.00017748,2]
[337701915,1725977445675,-500.0,0.00017748,2]
[337701916,1725977445685,-1523.58,0.00017748,2]
[337701917,1725977445695,-151.0,0.00017748,2]
[337701918,1725977445710,-151.0,0.00017748,2]
[337701919,1725977445720,-1372.07,0.00017748,2]
[337701920,1725977445729,-151.0,0.00017748,2]
[337701921,1725977445738,-613.13,0.00017748,2]
[337701922,1725977445749,-151.0,0.00017748,2]
[337701923,1725977445758,-289.276864,0.00017748,2]
[337701924,1725977445768,-500.0,0.00017748,2]
[337701925,1725977445778,-151.0,0.00017748,2]
[337701926,1725977445787,-1131.96,0.00017748,2]
[337701927,1725977445797,-151.0,0.00017748,2]
[337701928,1725977445807,-151.0,0.00017748,2]
[337701929,1725977445820,-1537.71,0.00017748,2]
[337701930,1725977445830,-151.0,0.00017748,2]
[337701931,1725977445841,-585.75,0.00017748,2]
[337701932,1725977445857,-63036.67,0.00017748,2]
[337701933,1725977445867,-583.41,0.00017748,2]
[337701934,1725977445877,-649.6386802,0.00017749,2]
[337701935,1725977445889,-500.0,0.00017749,2]
[337701936,1725977445898,-643.42,0.00017749,2]
[337701937,1725977445908,-500.0,0.00017749,2]
[337701938,1725977445918,-500.0,0.00017749,2]
[337701939,1725977445929,-500.0,0.00017749,2]
[337701940,1725977445938,-820.6,0.00017749,2]
[337701941,1725977445948,-768.11,0.00017749,2]
[337701942,1725977445958,-500.0,0.00017749,2]
[337701943,1725977445967,-500.0,0.00017749,2]
[337701944,1725977445977,-950.91,0.00017749,2]
[337701945,1725977445987,-500.0,0.00017749,2]
[337701946,1725977445997,-805.81,0.00017749,2]
[337701947,1725977446006,-857.73,0.00017749,2]
[337701948,1725977446016,-500.0,0.00017749,2]
[337701949,1725977446025,-500.0,0.00017749,2]
[337701950,1725977446035,-715.87,0.00017749,2]
[337701951,1725977446044,-615.86,0.00017749,2]
[337701952,1725977446053,-1613.93,0.00017749,2]
[337701953,1725977446063,-500.0,0.00017749,2]
[337701954,1725977446074,-156.347715,0.00017749,2]
[337701955,1725977446084,-500.0,0.00017749,2]
[337701956,1725977446093,-1089.91,0.00017749,2]
[337701957,1725977446106,-219.37392126,0.00017749,2]
[337701958,1725977446116,-552.93883444,0.00017749,2]
[337701959,1725977446126,-1084.47,0.00017749,2]
[337701960,1725977446135,-500.0,0.00017749,2]
[337701961,1725977446146,-790.7,0.00017749,2]
[337701962,1725977446156,-763.0,0.00017749,2]
[337701963,1725977446166,-1220.62,0.00017749,2]
[337701964,1725977446176,-1724.13,0.00017749,2]
[337701965,1725977446186,-456.053917,0.00017749,2]
[337701966,1725977446196,-456.053917,0.00017749,2]
[337701967,1725977446206,-1784.25,0.00017749,2]
[337701968,1725977446216,-284.927883,0.00017749,2]
[337701969,1725977446225,-1312.04,0.00017749,2]
[337701970,1725977446235,-500.0,0.00017749,2]
[337701971,1725977446245,-1855.88,0.00017749,2]
[337701972,1725977446254,-610.0,0.00017749,2]
[337701973,1725977446264,-500.0,0.00017749,2]
[337701974,1725977446274,-500.0,0.00017749,2]
[337701975,1725977446284,-500.0,0.00017749,2]
[337701976,1725977446294,-593.39,0.00017749,2]
[337701977,1725977446303,-599.24,0.00017749,2]
[337701978,1725977446313,-716.51,0.00017749,2]
[337701979,1725977446325,-1167.29,0.00017749,2]
[337701980,1725977446335,-500.0,0.00017749,2]
[337701981,1725977446345,-500.0,0.00017749,2]
[337701982,1725977446355,-911.47,0.00017749,2]
[337701983,1725977446365,-256.641651,0.00017749,2]
[337701984,1725977446375,-165.510735,0.00017749,2]
[337701985,1725977446386,-2319.6,0.00017749,2]
[337701986,1725977446395,-165.510735,0.00017749,2]
[337701987,1725977446404,-923.16,0.00017749,2]
[337701988,1725977446414,-151.0,0.00017749,2]
[337701989,1725977446423,-151.0,0.00017749,2]
[337701990,1725977446433,-151.0,0.00017749,2]
[337701991,1725977446443,-1666.28,0.00017749,2]
[337701992,1725977446453,-187.27208,0.00017749,2]
[337701993,1725977446463,-500.0,0.00017749,2]
[337701994,1725977446473,-151.0,0.00017749,2]
[337701995,1725977446483,-4274.93,0.00017749,2]
[337701996,1725977446493,-151.0,0.00017749,2]
[337701997,1725977446503,-368.00094296,0.00017749,2]
[337701998,1725977446513,-500.0,0.00017749,2]
[337701999,1725977446523,-151.0,0.00017749,2]
[337702000,1725977446533,-500.0,0.00017749,2]
[337702001,1725977446543,-151.0,0.00017749,2]
[337702002,1725977446553,-151.0,0.00017749,2]
[337702003,1725977446562,-500.0,0.00017749,2]
[337702004,1725977446579,-443.44814962,0.00017749,2]
[337702005,1725977446589,-643.22,0.00017749,2]
[337702006,1725977446598,-500.0,0.00017749,2]
[337702007,1725977446608,-627.83,0.00017749,2]
[337702008,1725977446620,-151.0,0.00017749,2]
[337702009,1725977446792,-151.0,0.00017749,2]
[337702010,1725977446803,-1193.43,0.00017749,2]
[337702011,1725977446812,-587.16,0.00017749,2]
[337702012,1725977446826,-609.34,0.00017749,2]
[337702013,1725977446835,-632.54,0.00017749,2]
[337702014,1725977446845,-736.06,0.00017749,2]
[337702015,1725977446858,-531.78,0.00017749,2]
[337702016,1725977446868,-2101.72,0.00017749,2]
[337702017,1725977446877,-190.520162,0.00017749,2]
[337702018,1725977446887,-190.520162,0.00017749,2]
[337702019,1725977446897,-649.84,0.00017749,2]
[337702020,1725977446907,-1713.04,0.00017749,2]
[337702021,1725977446916,-706.72,0.00017749,2]
[337702022,1725977446926,-500.0,0.00017749,2]
[337702023,1725977446938,-151.0,0.00017749,2]
[337702024,1725977446949,-505.67,0.00017749,2]
[337702025,1725977446959,-151.0,0.00017749,2]
[337702026,1725977446969,-151.0,0.00017749,2]
[337702027,1725977446979,-151.0,0.00017749,2]
[337702028,1725977446988,-500.0,0.00017773,2]
[337702029,1725977446998,-500.0,0.00017773,2]
[337702030,1725977447007,-500.0,0.00017773,2]
[337702031,1725977447017,-500.0,0.00017773,2]
[337702033,1725977447028,-150.112233,0.000178,2]
[337702034,1725977447037,-293.948172,0.00017808,2]
[337702035,1725977447047,-213.5280579,0.00017863,2]
[337702036,1725977447058,-500.0,0.00017878,2]
[337702037,1725977447074,-500.0,0.00017878,2]
[337702038,1725977447084,-500.0,0.00017878,2]
[337702039,1725977447094,-150.112233,0.000179,2]
[337702040,1725977447104,-150.112233,0.00018,2]
[337702041,1725977447113,-1582.23,0.00018019,2]
[337702042,1725977447123,-3581.73,0.00018019,2]
[337702043,1725977447133,-684.08,0.00018019,2]
[337702044,1725977447142,-794.58,0.00018019,2]
[337702045,1725977447152,-777.93,0.00018019,2]
[337702046,1725977447161,-652.97,0.00018019,2]
[337702047,1725977447171,-613.0,0.00018019,2]
[337702048,1725977447180,-500.0,0.0001802,2]
[337702049,1725977447190,-3767.92,0.0001802,2]
[337702050,1725977447200,-6655.97,0.0001802,2]
[337702051,1725977447209,-3477.1,0.0001802,2]
[337702052,1725977447219,-850.93,0.0001802,2]
[337702053,1725977447229,-1117.07,0.0001802,2]
[337702054,1725977447239,-1277.8,0.0001802,2]
[337702055,1725977447248,-666.17,0.0001802,2]
[337702056,1725977447258,-500.0,0.0001802,2]
[337702057,1725977447268,-1477.93,0.0001802,2]
[337702058,1725977447278,-500.0,0.0001802,2]
[337702059,1725977447288,-500.0,0.0001802,2]
[337702060,1725977447298,-1866.98,0.0001802,2]
[337702061,1725977447308,-44527.46,0.0001802,2]
[337702062,1725977447318,-1584.9,0.0001802,2]
[337702063,1725977447327,-1953.74,0.0001802,2]
[337702064,1725977447339,-1957.79,0.0001802,2]
[337702065,1725977447348,-500.0,0.00018021,2]
[337702066,1725977447357,-500.0,0.00018021,2]
[337702067,1725977447366,-500.0,0.00018021,2]
[337702068,1725977447376,-500.0,0.00018021,2]
[337702069,1725977447387,-500.0,0.00018021,2]
[337702070,1725977447397,-500.0,0.00018021,2]
[337702071,1725977447408,-500.0,0.00018021,2]
[337702072,1725977447417,-534.11170401,0.00018021,2]
[337702073,1725977447427,-500.0,0.00018021,2]
[337702074,1725977447437,-1148.55,0.00018021,2]
[337702075,1725977447446,-500.0,0.00018021,2]
[337702076,1725977447456,-500.0,0.00018021,2]
[337702077,1725977447466,-500.0,0.00018021,2]
[337702078,1725977447475,-243.39,0.00018021,2]
[337702079,1725977447485,-500.0,0.00018021,2]
[337702080,1725977447494,-1009.4,0.00018021,2]
[337702081,1725977447503,-500.0,0.00018021,2]
[337702082,1725977447513,-591.37,0.00018021,2]
[337702083,1725977447523,-500.0,0.00018021,2]
[337702084,1725977447533,-513.94186108,0.00018021,2]
[337702085,1725977447542,-500.0,0.00018021,2]
[337702086,1725977447552,-500.0,0.00018021,2]
[337702087,1725977447561,-500.0,0.00018021,2]
[337702088,1725977447575,-500.0,0.00018021,2]
[337702089,1725977447585,-500.0,0.00018021,2]
[337702090,1725977447594,-500.0,0.00018021,2]
[337702091,1725977447604,-500.0,0.00018021,2]
[337702092,1725977447614,-1300.99,0.00018021,2]
[337702093,1725977447624,-500.0,0.00018021,2]
[337702094,1725977447634,-1370.86,0.00018021,2]
[337702095,1725977447644,-500.0,0.00018021,2]
[337702096,1725977447653,-500.0,0.00018021,2]
[337702097,1725977447663,-179.57994494,0.00018021,2]
[337702098,1725977447674,-510.94,0.00018021,2]
[337702099,1725977447683,-640.94,0.00018021,2]
[337702100,1725977447692,-500.0,0.00018021,2]
[337702101,1725977447702,-372.1353062,0.00018021,2]
[337702102,1725977447711,-500.0,0.00018021,2]
[337702103,1725977447721,-500.0,0.00018021,2]
[337702104,1725977447731,-500.0,0.00018021,2]
[337702105,1725977447739,-655.24,0.00018021,2]
[337702106,1725977447751,-576.42,0.00018021,2]
[337702107,1725977447762,-500.0,0.00018021,2]
[337702108,1725977447772,-500.0,0.00018021,2]
[337702109,1725977447781,-500.0,0.00018021,2]
[337702110,1725977447791,-630.63,0.00018021,2]
[337702111,1725977447800,-254.95015896,0.00018021,2]
[337702112,1725977447810,-500.0,0.00018021,2]
[337702113,1725977447823,-500.0,0.00018021,2]
[337702114,1725977447833,-500.0,0.00018021,2]
[337702115,1725977447843,-500.0,0.00018021,2]
[337702116,1725977447853,-500.0,0.00018021,2]
[337702117,1725977447864,-500.0,0.00018021,2]
[337702118,1725977447873,-1700.48,0.00018021,2]
[337702119,1725977447882,-500.0,0.00018021,2]
[337702120,1725977447891,-500.0,0.00018021,2]
[337702121,1725977447901,-979.55,0.00018021,2]
[337702122,1725977447910,-500.0,0.00018021,2]
[337702123,1725977447920,-224.65591935,0.00018021,2]
[337702124,1725977447931,-927.58,0.00018021,2]
[337702125,1725977447940,-573.55,0.00018021,2]
[337702126,1725977447951,-609.13,0.00018021,2]
[337702127,1725977447971,-500.0,0.00018021,2]
[337702128,1725977447988,-500.0,0.00018021,2]
[337702129,1725977447999,-500.0,0.00018021,2]
[337702130,1725977448016,-500.0,0.00018021,2]
[337702132,1725977448033,-1505.73,0.00018021,2]
[337702133,1725977448048,-500.0,0.00018021,2]
[337702134,1725977448066,-501.12306848,0.00018021,2]
[337702135,1725977448082,-500.0,0.00018021,2]
[337702136,1725977448096,-1308.6,0.00018021,2]
[337702137,1725977448111,-318.08703681,0.00018021,2]
[337702138,1725977448126,-862.02,0.00018021,2]
[337702139,1725977448139,-500.0,0.00018021,2]
[337702140,1725977448153,-500.0,0.00018021,2]
[337702141,1725977448168,-500.0,0.00018021,2]
[337702142,1725977448183,-540.08,0.00018021,2]
[337702143,1725977448198,-741.12,0.00018021,2]
[337702144,1725977448214,-151.0,0.00018021,2]
[337702145,1725977448228,-500.0,0.00018021,2]
[337702146,1725977448238,-151.0,0.00018021,2]
[337702147,1725977448250,-3905.01,0.00018021,2]
[337702148,1725977448266,-500.0,0.00018021,2]
[337702149,1725977448279,-500.0,0.00018021,2]
[337702150,1725977448293,-1873.45,0.00018021,2]
[337702151,1725977448306,-153.443005,0.00018021,2]
[337702152,1725977448320,-1439.24,0.00018021,2]
[337702153,1725977448331,-500.0,0.00018021,2]
[337702154,1725977448344,-500.0,0.00018021,2]
[337702155,1725977448356,-151.0,0.00018021,2]
[337702156,1725977448369,-500.0,0.00018021,2]
[337702157,1725977448381,-500.0,0.00018021,2]
[337702158,1725977448393,-229.510036,0.00018021,2]
[337702159,1725977448406,-500.0,0.00018021,2]
[337702160,1725977448419,-500.0,0.00018021,2]
[337702161,1725977448433,-742.29,0.00018021,2]
[337702162,1725977448446,-500.0,0.00018021,2]
[337702163,1725977448458,-3036.85,0.00018021,2]
[337702164,1725977448471,-1390.89,0.00018021,2]
[337702165,1725977448485,-500.0,0.00018021,2]
[337702166,1725977448497,-839.17,0.00018021,2]
[337702167,1725977448510,-500.0,0.00018021,2]
[337702168,1725977448525,-500.0,0.00018021,2]
[337702169,1725977448537,-500.0,0.00018021,2]
[337702170,1725977448550,-926.04,0.00018021,2]
[337702171,1725977448562,-500.0,0.00018021,2]
[337702172,1725977448577,-620.25,0.00018021,2]
[337702173,1725977448589,-500.0,0.00018021,2]
[337702174,1725977448601,-500.0,0.00018021,2]
[337702175,1725977448615,-151.0,0.00018021,2]
[337702176,1725977448628,-3994.78,0.00018021,2]
[337702177,1725977448642,-1780.46,0.00018021,2]
[337702178,1725977448655,-500.0,0.00018021,2]
[337702179,1725977448668,-500.0,0.00018021,2]
[337702180,1725977448680,-500.0,0.00018021,2]
[337702181,1725977448694,-943.23,0.00018021,2]
[337702182,1725977448706,-500.0,0.00018021,2]
[337702183,1725977448719,-500.0,0.00018021,2]
[337702184,1725977448733,-1374.94,0.00018021,2]
[337702185,1725977448746,-990.06,0.00018021,2]
[337702186,1725977448759,-1340.66,0.00018021,2]
[337702187,1725977448772,-543.68,0.00018021,2]
[337702188,1725977448786,-1093.91,0.00018021,2]
[337702189,1725977448799,-640.2,0.00018021,2]
[337702190,1725977448812,-190.520162,0.00018021,2]
[337702191,1725977448827,-584.58,0.00018021,2]
[337702192,1725977448839,-190.520162,0.00018021,2]
[337702193,1725977448854,-500.0,0.00018021,2]
[337702194,1725977448867,-500.0,0.00018021,2]
[337702195,1725977448879,-500.0,0.00018021,2]
[337702196,1725977448892,-500.0,0.00018021,2]
[337702197,1725977448905,-1618.22,0.00018021,2]
[337702198,1725977448917,-541.41,0.00018021,2]
[337702199,1725977448931,-627.16,0.00018021,2]
[337702200,1725977448944,-500.0,0.00018021,2]
[337702201,1725977448958,-500.0,0.00018021,2]
[337702202,1725977448971,-690.77,0.00018021,2]
[337702203,1725977448984,-500.0,0.00018021,2]
[337702204,1725977448997,-500.0,0.00018021,2]
[337702205,1725977449011,-151.0,0.00018021,2]
[337702206,1725977449024,-1521.45,0.00018021,2]
[337702207,1725977449038,-151.0,0.00018021,2]
[337702208,1725977449052,-573.32,0.00018021,2]
[337702209,1725977449065,-500.0,0.00018021,2]
[337702210,1725977449083,-500.0,0.00018021,2]
[337702211,1725977449095,-500.0,0.00018021,2]
[337702212,1725977449107,-306.69299409,0.00018021,2]
[337702213,1725977449120,-583.86,0.00018021,2]
[337702214,1725977449132,-500.0,0.00018021,2]
[337702215,1725977449144,-500.0,0.00018021,2]
[337702216,1725977449157,-500.0,0.00018021,2]
[337702217,1725977449169,-151.0,0.00018021,2]
[337702218,1725977449182,-151.0,0.00018021,2]
[337702219,1725977449194,-500.0,0.00018021,2]
[337702220,1725977449209,-500.0,0.00018021,2]
[337702221,1725977449222,-500.0,0.00018021,2]
[337702222,1725977449235,-500.0,0.00018021,2]
[337702223,1725977449247,-1120.9,0.00018021,2]
[337702224,1725977449260,-529.85,0.00018021,2]
[337702225,1725977449272,-729.39,0.00018021,2]
[337702226,1725977449285,-613.85,0.00018021,2]
[337702227,1725977449298,-588.46,0.00018021,2]
[337702228,1725977449310,-36198.52,0.00018021,2]
[337702229,1725977449320,-151.0,0.00018021,2]
[337702230,1725977449330,-500.0,0.00018021,2]
[337702231,1725977449339,-151.0,0.00018021,2]
[337702232,1725977449350,-151.0,0.00018021,2]
[337702233,1725977449360,-177.5808894,0.00018021,2]
[337702234,1725977449370,-900.71,0.00018021,2]
[337702235,1725977449380,-500.0,0.00018021,2]
[337702236,1725977449390,-151.0,0.00018021,2]
[337702237,1725977449400,-1210.57,0.00018021,2]
[337702238,1725977449410,-500.0,0.00018021,2]
[337702239,1725977449421,-500.0,0.00018021,2]
[337702240,1725977449432,-500.0,0.00018021,2]
[337702241,1725977449441,-500.0,0.00018021,2]
[337702242,1725977449707,-500.0,0.00018021,2]
[337702243,1725977449722,-500.0,0.00018021,2]
[337702244,1725977449731,-5476.12,0.00018021,2]
[337702245,1725977449741,-500.0,0.00018021,2]
[337702246,1725977449751,-766.81,0.00018021,2]
[337702247,1725977449760,-151.0,0.00018022,2]
[337702248,1725977449769,-151.0,0.00018022,2]
[337702249,1725977449779,-151.335997,0.00018022,2]
[337702250,1725977449789,-151.0,0.00018022,2]
[337702251,1725977449799,-152.820907,0.00018022,2]
[337702252,1725977449809,-151.0,0.00018022,2]
[337702253,1725977449820,-283.471534,0.00018022,2]
[337702254,1725977449829,-151.0,0.00018022,2]
[337702255,1725977449839,-283.471534,0.00018022,2]
[337702256,1725977449849,-151.0,0.00018022,2]
[337702257,1725977449862,-151.0,0.00018022,2]
[337702258,1725977449872,-154.206267,0.00018022,2]
[337702259,1725977449881,-456.053917,0.00018022,2]
[337702260,1725977449891,-456.053917,0.00018022,2]
[337702261,1725977449900,-284.927883,0.00018022,2]
[337702262,1725977449911,-256.641651,0.00018022,2]
[337702263,1725977449920,-165.510735,0.00018022,2]
[337702264,1725977449931,-165.510735,0.00018022,2]
[337702265,1725977449940,-500.0,0.00018022,2]
[337702266,1725977449949,-151.0,0.00018022,2]
[337702267,1725977449959,-151.0,0.00018022,2]
[337702268,1725977449969,-151.0,0.00018022,2]
[337702269,1725977449978,-500.0,0.00018022,2]
[337702270,1725977449987,-500.0,0.00018022,2]
[337702271,1725977449996,-659.14,0.00018022,2]
[337702272,1725977450006,-1810.43,0.00018022,2]
[337702273,1725977450016,-500.0,0.00018022,2]